Cogmind - Beta 16 @@@ ROGUE MODE // 2026.01.05 @ 16:08:42 Player: artema Result: Destroyed by H-61 Shepherd via exploding Power Conduit Performance ------------- Evolutions (4) 2000 Regions Visited (4) 800 Robots Destroyed (41) 205 Value Destroyed (1043) 1043 Prototype IDs (8) 160 Alien Tech Used (0) 0 Bonus (800) 800 TOTAL SCORE: 5008 Bonus ------- Registered with UFD 300 Met Optimus in HQ 500 Cogmind --------- Core Integrity 0/850 Matter 35/300 Energy 100/100 System Corruption 7% Temperature Cool (54) Movement Core (1350) Ox26 Location -6/Factory Parts ------- > --- POWER (1) -------- (None) > --- PROPULSION (4) --- (None) > --- UTILITY (6) ------ Huge Storage Unit Spectral Analyzer > --- WEAPON (4) ------- (None) > --- INVENTORY (25) --- Ion Engine Ion Engine Fusion Compressor Advanced Heat Sink Large Storage Unit Trap Scanner Enhanced Optical Array Advanced Sensor Array Backup Plating III Backup Plating III Hacking Suite Heavy Laser Improved Spread Laser Battle Cannon Advanced Assault Cannon Advanced Assault Cannon Peak State ------------ > --- POWER ------------ Fusion Compressor > --- PROPULSION ------- Light Treads Light Treads Improved Treads Spiked Treads > --- UTILITY ---------- Scrap Suit Huge Storage Unit Spectral Analyzer Thermal Shield Improved Hardlight Generator > --- WEAPON ----------- Minigun Coil Gun Coil Gun Heavy Flak Cannon > --- INVENTORY -------- Ion Engine Ion Engine Fusion Compressor Advanced Heat Sink Large Storage Unit Trap Scanner Enhanced Optical Array Advanced Sensor Array Backup Plating III Backup Plating III Hacking Suite Heavy Laser Improved Spread Laser Battle Cannon Advanced Assault Cannon Advanced Assault Cannon [Rating: 62] Favorites ----------- Power Ion Engine Engine Ion Engine Power Core Fusion Compressor Propulsion Light Treads Treads Light Treads Leg Aluminum Leg Utility Large Storage Unit Device Seismic Detector Storage Large Storage Unit Processor Spectral Analyzer Protection Improved Light Armor Plating Weapon Coil Gun Ballistic Gun Coil Gun Ballistic Cannon Battle Cannon Build | -11 -10 -10 -9 -6 ------- Run | Yrd Mat Sub Scr Fac Slots Evolved 8 | . . . . 8 Power . | . . . . . Propulsion 2 | . . . . 2 Utility 4 | . . . . 4 Weapon 2 | . . . . 2 Parts Attached 30 | 9 1 3 3 14 Power 4 | 1 . 1 . 2 Engine 3 | 1 . 1 . 1 Core 1 | . . . . 1 Reactor . | . . . . . Propulsion 7 | 4 . . 1 2 Treads 5 | 2 . . 1 2 Leg 2 | 2 . . . . Wheel . | . . . . . Hover . | . . . . . Flight . | . . . . . Utility 10 | 2 1 . . 7 Device 4 | 1 . . . 3 Storage 3 | 1 1 . . 1 Processor 1 | . . . . 1 Hackware . | . . . . . Protection 2 | . . . . 2 Artifact . | . . . . . Weapon 9 | 2 . 2 2 3 Energy Gun . | . . . . . Energy Cannon . | . . . . . Ballistic Gun 6 | 2 . 1 1 2 Ballistic Cannon 3 | . . 1 1 1 Launcher . | . . . . . Special Weapon . | . . . . . Impact Weapon . | . . . . . Slashing Weapon . | . . . . . Piercing Weapon . | . . . . . Special Melee Weapon . | . . . . . Unidentified Prototypes . | . . . . . Parts Lost 16 | . . 1 . 15 Power 3 | . . 1 . 2 Propulsion 3 | . . . . 3 Utility 5 | . . . . 5 Weapon 5 | . . . . 5 Highest Loss Streak 7 | . . 1 . 7 To Critical Strikes . | . . . . . Average Backups 11 | 3 7 11 12 9 Power 1 | . 1 1 1 1 Propulsion 1 | 1 3 3 1 . Utility 6 | . 1 2 8 5 Weapon 1 | . 1 4 1 2 Tool/Special . | . . . . . Unused Backups 24 | . . 3 9 12 Power 2 | . . . . 2 Propulsion 1 | . . . 1 . Utility 13 | . . . 6 7 Weapon 8 | . . 3 2 3 Tool/Special . | . . . . . Average Slot Usage (%) 96 | . 100 100 100 87 Engine 11 | . 14 14 14 4 Treads 26 | . 14 28 28 25 Device 13 | . 14 14 14 13 Storage 11 | . 14 14 14 6 Processor 1 | . . . . 5 Ballistic Gun 16 | . 28 22 14 18 Ballistic Cannon 10 | . . 5 14 5 Peak Build Rating 62 | 7 8 11 21 62 Average Rating 24 | 5 7 9 17 52 On Entrance 9 | . 7 8 10 21 Avg Prop Armor Cover (%) 5 | 8 . . . 4 Naked Turns . | . . . . . Heaviest Build 119 | 14 29 33 39 119 Greatest Support 83 | 40 40 40 40 83 Greatest Overweight (x) 1 | . . . . 1 Average Overweight (x) . | . . . . . Largest Inventory Capacity 25 | 8 15 15 15 25 Average Capacity 15 | 7 11 15 15 16 Most Carried 16 | 5 13 15 15 16 Average Carried 12 | 3 7 13 14 9 Final Capacity 25 | 8 15 15 15 25 Final Carried 16 | 5 13 12 15 16 Scrap Suit Usage (%) 24 | . . . . 98 Parts Cannibalized 8 | . . . . 8 Class Distribution -------------------- 77% | Mutant 22% | Tank Dominant Class ---------------- Mutant | -10/Materials Mutant | -10/Subcaves Mutant | -9/Scraptown Tank | -6/Factory Resources | -11 -10 -10 -9 -6 ----------- Run | Yrd Mat Sub Scr Fac Matter Collected 1428 | 245 50 142 52 939 Remotely . | . . . . . Salvage Created 1768 | 86 50 64 . 1568 Parts 85 | 5 3 5 . 72 Haulers Intercepted 1 | . 1 . . . Recyclers Shooed 1 | . . . . 1 Parts Field Recycled . | . . . . . Retrieved Matter . | . . . . . Parts Self-Destructed . | . . . . . Prevented . | . . . . . Parts Restored . | . . . . . Kills | -11 -10 -10 -9 -6 ------- Run | Yrd Mat Sub Scr Fac Combat Hostiles Destroyed 18 | . . 2 . 16 Guns 9 | . . 2 . 7 Cannons 8 | . . . . 8 AOE 1 | . . . . 1 Classes Destroyed 14 | 2 1 1 . 10 Worker 8 | . . . . 8 Builder 1 | . . . . 1 Tunneler 2 | 2 . . . . Hauler 1 | . 1 . . . Recycler 7 | 1 . . . 6 Mechanic 1 | . . . . 1 Operator 1 | . . . . 1 Watcher 2 | . . . . 2 Swarmer 7 | . . . . 7 Grunt 4 | . . . . 4 Brawler 2 | . . . . 2 Sentry 1 | . . . . 1 Programmer 2 | . . . . 2 Subdweller 2 | . . 2 . . Best Kill Streak 8 | 2 1 1 . 8 Combat Bots Only 4 | . . 1 . 4 Max Kills in Single Turn 2 | 1 1 1 . 2 Gunslinging . | . . . . . Exploded 1 | . . . . 1 Melee . | . . . . . Uniques/NPCs Destroyed . | . . . . . Combat | -11 -10 -10 -9 -6 -------- Run | Yrd Mat Sub Scr Fac Hostile Shots Fired 160 | . . 8 . 152 Missed 37 | . . 1 . 36 Hits 123 | . . 7 . 116 Melee 2 | . . . . 2 Projectile 121 | . . 7 . 114 AOE 4 | . . . . 4 Critical Strikes 7 | . . 1 . 6 Part Disruptions 3 | . . . . 3 Damage Taken 3053 | . . 154 . 2899 Core 875 | . . 25 . 850 Absorbed by Shields 18 | . . . . 18 Ignored by Resistances 114 | . . . . 114 Regen/Repaired (Parts) 63 | . . . . 63 Core Remaining (%) 95 | 100 . . 90 . Volleys Fired 69 | 12 5 6 . 46 Largest 4 | 2 2 2 . 4 Hottest 129 | 40 40 63 . 129 Shots Fired 228 | 24 10 12 . 182 Gun 180 | 24 10 9 . 137 Cannon 48 | . . 3 . 45 Launcher . | . . . . . Special . | . . . . . Kinetic 228 | 24 10 12 . 182 Thermal . | . . . . . Explosive . | . . . . . Electromagnetic . | . . . . . Robot Hit Streak 12 | 9 5 8 . 12 Robot Miss Streak 5 | 2 1 1 . 5 Penetration Max 1 | . . . . 1 Secondary Targets . | . . . . . Shots Hit Robots 126 | 15 6 9 . 96 Core Hits 62 | 4 2 4 . 52 Critical Kills 2 | . . . . 2 Critical Parts Destroyed 2 | . . . . 2 Critical Strikes 4 | . . . . 4 Destroy 4 | . . . . 4 Melee Attacks . | . . . . . Impact . | . . . . . Slashing . | . . . . . Piercing . | . . . . . Sneak Attacks . | . . . . . Combat Hostiles . | . . . . . Follow-up Attacks . | . . . . . Damage Inflicted 3373 | 151 62 154 . 3006 Guns 2180 | 151 62 113 . 1854 Cannons 816 | . . 41 . 775 Explosions 331 | . . . . 331 Melee . | . . . . . Ramming 46 | . . . . 46 Kinetic 2996 | 151 62 154 . 2629 Thermal . | . . . . . Explosive 282 | . . . . 282 Electromagnetic 49 | . . . . 49 Impact . | . . . . . Slashing . | . . . . . Piercing . | . . . . . Highest Corruption 7 | . . . . 7 Average Corruption 6 | . . . . 6 Corruption Purged . | . . . . . Corruption Blocked . | . . . . . Effects 34 | . . . . 34 Message Errors 6 | . . . . 6 Matter Fused 7 | . . . . 7 Heat Flow Errors 1 | . . . . 1 Energy Discharges 6 | . . . . 6 Parts Rejected 2 | . . . . 2 Data Loss (minor) 5 | . . . . 5 Data Loss (major) 3 | . . . . 3 Misfires 1 | . . . . 1 Alerts 1 | . . . . 1 Weapon Failures 2 | . . . . 2 Overload Shots . | . . . . . Overflow Damage 110 | . . . . 110 Projectiles . | . . . . . Explosions 110 | . . . . 110 Melee . | . . . . . Knockbacks 4 | . . . . 4 Impact . | . . . . . Kinetic 4 | . . . . 4 Secondary . | . . . . . Self-Inflicted Damage 303 | . . . . 303 Shots 5 | . . . . 5 Rammed 1 | . . . . 1 Targets Rammed 5 | . . . . 5 Kicked . | . . . . . Crushed 4 | . . . . 4 Highest Temperature 305 | . . . . 305 Average Temperature 85 | . . . . 85 Received Heat Transfer 469 | . . . . 469 Effects 3 | . . . . 3 Interference 3 | . . . . 3 Siege Activations . | . . . . . Martial Activations . | . . . . . Shielding Activations . | . . . . . Robots Disrupted 1 | . . . . 1 Combat Hostiles 1 | . . . . 1 Robots Corrupted . | . . . . . Combat Hostiles . | . . . . . Parts Fried . | . . . . . Impact Corruptions . | . . . . . Robots Melted . | . . . . . Combat Hostiles . | . . . . . Parts Melted . | . . . . . Heat Transferred . | . . . . . Parts Sabotaged . | . . . . . Parts Stolen . | . . . . . Parts Stripped . | . . . . . Power Chain Reactions . | . . . . . Alert | -11 -10 -10 -9 -6 ------- Run | Yrd Mat Sub Scr Fac Maximum Alert Level 1 | . . . . 1 Low Security (%) 89 | 100 100 . . 87 Level 1 10 | . . . . 12 Level 2 . | . . . . . Level 3 . | . . . . . Level 4 . | . . . . . Level 5 . | . . . . . High Security . | . . . . . Max Security . | . . . . . Peak Influence 223 | 5 10 . . 223 Initial . | . . . . . Average 82 | . . . . 107 Influence Increases 729 | 15 17 . . 697 Destroy 0b10 Robot/C 320 | . . . . 320 Destroy 0b10 Robot/NC 115 | 15 5 . . 95 Destroy Leader 66 | . 2 . . 64 Successful Hack 16 | . 10 . . 6 Disable Machine 135 | . . . . 135 Destroy Structure 47 | . . . . 47 Lose Combat Pursuer 30 | . . . . 30 Influence Decreases 604 | 15 17 . . 572 Time Decay 454 | 15 17 . . 422 Lost Part 150 | . . . . 150 Squads Dispatched 6 | . . . . 6 Investigation 2 | . . . . 2 Extermination 2 | . . . . 2 Reinforcement 2 | . . . . 2 Assault . | . . . . . Garrison . | . . . . . Intercept . | . . . . . Searches Triggered . | . . . . . Construction Impeded . | . . . . . Haulers Reinforced . | . . . . . Active Scanning Responses . | . . . . . Cargo Convoy Interrupts 1 | . . . . 1 Stealth | -11 -10 -10 -9 -6 --------- Run | Yrd Mat Sub Scr Fac Distress Signals 2 | . . . . 2 Communications Jammed . | . . . . . Distress Signals . | . . . . . Times Spotted 31 | . 1 2 . 28 Peak Tracking Total 8 | . 1 1 . 8 Tactical Retreats 1 | . . . . 1 Traps | -11 -10 -10 -9 -6 ------- Run | Yrd Mat Sub Scr Fac Traps Triggered 2 | . . . . 2 Indirectly . | . . . . . Trap Hack Attempts . | . . . . . Triggered . | . . . . . Disarmed . | . . . . . Reprogrammed . | . . . . . Reused . | . . . . . Traps Extracted . | . . . . . Installed . | . . . . . Triggered . | . . . . . Machines | -11 -10 -10 -9 -6 ---------- Run | Yrd Mat Sub Scr Fac Machines Disabled 9 | . . . . 9 Max in Single Turn 4 | . . . . 4 Machines Repaired . | . . . . . Machines Dismantled . | . . . . . Machines Sabotaged . | . . . . . Overloaded Fab Kills . | . . . . . Hacking | -11 -10 -10 -9 -6 --------- Run | Yrd Mat Sub Scr Fac Machines Accessed 9 | . 1 . 5 3 Terminals 3 | . 1 . . 2 Fabricators . | . . . . . Repair Stations . | . . . . . Recycling Units . | . . . . . Scanalyzers 1 | . . . . 1 Garrison Access . | . . . . . Total Hacks 37 | . 5 . 25 7 Successful 35 | . 4 . 25 6 Failed 2 | . 1 . . 1 Catastrophic . | . . . . . Database Lockouts . | . . . . . Manual 1 | . . . . 1 Terminals 9 | . 5 . . 4 Fabricators . | . . . . . Repair Stations . | . . . . . Recycling Units . | . . . . . Scanalyzers 3 | . . . . 3 Garrison Access . | . . . . . Terminal Hacks 32 | . 4 . 25 3 Record 27 | . 1 . 25 1 Robot Analysis 1 | . 1 . . . Prototype ID Bank 1 | . 1 . . . Alert Level 1 | . . . . 1 Dispatch Records 1 | . . . . 1 Zone Layout 1 | . 1 . . . Fabricator Hacks . | . . . . . Repair Station Hacks . | . . . . . Recycling Unit Hacks . | . . . . . Scanalyzer 3 | . . . . 3 Retrieve Study 3 | . . . . 3 Garrison Access Hacks . | . . . . . Unauthorized Hacks . | . . . . . Terminals . | . . . . . Fabricators . | . . . . . Repair Stations . | . . . . . Recycling Units . | . . . . . Scanalyzers . | . . . . . Garrison Access . | . . . . . Data Cores Recovered 1 | . . . . 1 Used . | . . . . . Hacking Detections 3 | . 1 . . 2 Full Trace Events . | . . . . . Feedback Events . | . . . . . Feedback Blocked . | . . . . . Robot Schematics Acquired . | . . . . . Robots Built . | . . . . . Authchips . | . . . . . Time . | . . . . . Total Robot Build Rating . | . . . . . Part Schematics Acquired . | . . . . . Parts Built . | . . . . . Authchips . | . . . . . Time . | . . . . . Total Part Build Rating . | . . . . . Part Studies Acquired 3 | . . . . 3 Parts Repaired . | . . . . . Time . | . . . . . Parts Recycled . | . . . . . Recycled Matter . | . . . . . Retrieved Matter . | . . . . . Retrieved Components . | . . . . . Parts Scanalyzed . | . . . . . Part Schematics Acquired . | . . . . . Parts Damaged . | . . . . . Bothacking | -11 -10 -10 -9 -6 ------------ Run | Yrd Mat Sub Scr Fac Used RIF Installer . | . . . . . Robots Hacked . | . . . . . Non-combat . | . . . . . Combat . | . . . . . Robot Hacks Applied . | . . . . . Relay Couplers Released . | . . . . . Fabnet Peak Effective % . | . . . . . Robots Rewired . | . . . . . Allies Hacked . | . . . . . Hacks Repelled . | . . . . . Allies | -11 -10 -10 -9 -6 -------- Run | Yrd Mat Sub Scr Fac Total Allies . | . . . . . Largest Group . | . . . . . Highest-Rated Group . | . . . . . Highest-Rated Ally . | . . . . . Total Orders . | . . . . . Ally Attacks . | . . . . . Total Damage . | . . . . . Kills . | . . . . . Allies Corrupted . | . . . . . Allies Melted . | . . . . . Intel | -11 -10 -10 -9 -6 ------- Run | Yrd Mat Sub Scr Fac Active Infowar (turns) 5518 | 35 284 459 3388 1352 Optics 1341 | . . . . 1341 Seismic 4393 | 35 284 459 3388 227 Robot Analysis Total 1 | . 1 . . . Derelict Logs Recovered 2 | . . . 2 . Drone Launches . | . . . . . Drone Recoveries . | . . . . . Exploration | -11 -10 -10 -9 -6 ------------- Run | Yrd Mat Sub Scr Fac Turns Passed 5725 | 142 284 459 3388 1452 Spaces Moved 3334 | 60 188 268 2100 718 Core 5 | 5 . . . . Treads 3222 | 51 85 268 2100 718 Legs 107 | 4 103 . . . Wheels . | . . . . . Hover . | . . . . . Flight . | . . . . . Fastest Speed 50 | 50 120 160 160 160 Average Speed 160 | 148 138 160 160 170 Slowest Speed 246 | 160 160 160 160 246 Overloaded Moves . | . . . . . Propulsion Burnouts . | . . . . . Robots Hopped . | . . . . . Potential Cave-ins . | . . . . . Cave-ins Triggered . | . . . . . Exploration Rate (%) 32 | 6 22 23 93 18 Regions Visited 4 Branch Regions 2 Pre-discovered Areas . | . . . . . Known Exits Taken . | . . . . . Unknown Exits Taken 4 | 1 1 1 1 . Scrap Searched 5 | . . . 5 . Spaces Dug . | . . . . . Terrain Destroyed 60 | . . . . 60 Melee . | . . . . . Projectile 13 | . . . . 13 AOE 47 | . . . . 47 Terrain Rammed . | . . . . . Walls Destroyed . | . . . . . Machines Disabled . | . . . . . Actions | -11 -10 -10 -9 -6 --------- Run | Yrd Mat Sub Scr Fac Total 3545 | 86 202 289 2135 833 Wait 36 | . . . . 36 Move 3330 | 59 187 267 2099 718 Hop . | . . . . . Pick Up 43 | 5 7 6 16 9 Fast Attach 9 | 7 . . . 2 Attach 12 | . . 1 . 11 Detach 2 | . . . . 2 Swap 14 | 3 3 2 3 3 Drop 23 | . . 7 16 . Fire 69 | 12 5 6 . 46 Melee . | . . . . . Ram . | . . . . . Kick . | . . . . . Crush 5 | . . . . 5 Escape Stasis . | . . . . . Rewire 2 | . . . 1 1 Trap . | . . . . . Miscellaneous . | . . . . . Route ------- -11/Scrapyard -10/Materials (discovered 2 exits: [*Min] / [*Sub]) -10/Subcaves -9/Scraptown (discovered 2 exits: *Fac x2) -6/Factory (discovered 3 exits: Fac x3) History --------- Turn | Location | Event 81 | -11/Scrapyard | Discovered new exit (range 15) 143 | -11/Scrapyard | Entered Materials 144 | -10/Materials | Met a group of wandering Federalists 224 | -10/Materials | Discovered new exit (range 9) 287 | -10/Materials | Discovered new exit (range 16) 313 | -10/Materials | Build established: Mutant 427 | -10/Materials | Entered Subcaves 428 | -10/Subcaves | Continued accompanying wandering Federalists (6) 644 | -10/Subcaves | Shifting Twisted Machinery released Shrapnel Trap 886 | -10/Subcaves | Entered Scraptown 1322 | -9/Scraptown | Discovered new exit (range 7) 1486 | -9/Scraptown | Scanned Subdweller tech in exchange for log data 1491 | -9/Scraptown | Learned 12 Research zone layouts 1493 | -9/Scraptown | Learned 8 Factory zone layouts 1566 | -9/Scraptown | Visited Cave Peace 1638 | -9/Scraptown | Visited Spacefarers 1731 | -9/Scraptown | Visited TADAMA 2274 | -9/Scraptown | Visited Assassins FH 2539 | -9/Scraptown | Visited UFD Registry 2539 | -9/Scraptown | Registered with UFD as "Meganade" 2573 | -9/Scraptown | Visited Cyclists 2594 | -9/Scraptown | Entered Cyclist Reading Room 2640 | -9/Scraptown | Visited Science Testing Area 2817 | -9/Scraptown | Visited Abandonware Association 2916 | -9/Scraptown | Learned abandonware demo "REPAIR.EXE" 2916 | -9/Scraptown | Learned abandonware demo "KABOOM.EXE" 2980 | -9/Scraptown | Visited Scrapoid Pod Storage 3019 | -9/Scraptown | Visited DA-N13 Charitable Foundation 3036 | -9/Scraptown | Found DCF Scrap (30 items) 3205 | -9/Scraptown | Found Scrap Suit 3235 | -9/Scraptown | Discovered new exit (range 3) 3305 | -9/Scraptown | Visited Junk Repository 3416 | -9/Scraptown | Visited Research Penetration Think Tank 3459 | -9/Scraptown | Visited Derelict Rescue Squad 3721 | -9/Scraptown | Visited Supply Room 3763 | -9/Scraptown | Visited Infowarlord's Domain 3784 | -9/Scraptown | Found Spectral Analyzer 3833 | -9/Scraptown | Visited Scrap Suit Storage 4160 | -9/Scraptown | Met Optimus 4160 | -9/Scraptown | Accepted into 0bPrime 4273 | -9/Scraptown | Civil war broke out across Scraptown 4274 | -9/Scraptown | Entered Factory 4274 | -6/Factory | Evolved 8 slots: Propulsion x2, Utility x4, Weapon x2 4275 | -6/Factory | Identified exit to Factory 4590 | -6/Factory | Build established: Tank 5120 | -6/Factory | Cargo convoy interrupted 5602 | -6/Factory | Lost 3 parts (1n2w) 5725 | -6/Factory | Core integrity fell below 50% 5726 | -6/Factory | Destroyed by H-61 Shepherd via exploding Power Conduit Last Messages --------------- 05726_ Power Conduit explodes. 05726_ U-05 Engineer destroyed. 05726_ Power Conduit explodes. 05726_ Repair Station disabled. 05726_ Backup Power I tumbles out of repair station. 05726_ Backup Propulsion I tumbles out of repair station. 05726_ Unknown Energy Gun tumbles out of repair station. 05726_ Backup Propulsion I tumbles out of repair station. 05726_ Backup Power I tumbles out of repair station. 05726_ U-05 Engineer destroyed. 05726_ Backup Propulsion I tumbles out of repair station. 05726_ Unknown Energy Gun tumbles out of repair station. [Achievement: 5k Club] Map ----- +----------------------------------------------------+ | *# #?????### #/ ####????????????????????????????? | | ## #?????# #????????????????????????????? | | ?# #?????# #????????????????????????????? | | ## ###???# # #????????????????????????????? | | =#??## #????????????????????????????? | | #### # ######???????????????????????? | | # ????????????????????????? | | ### ## # ?????????????? | | #?# ## + " ?????????????? | | ##+##### ## # ?????????????? | | T # = ####### ??????????????? | | ## ??! ] ?????????????????? | | ## #? ??????????????????? | | ## #? ""??????????????????? | | ########## ## #? ""??????????????????? | | ????# # # +#### ## "???????????????????? | | ##### ## ???????????????????? | | ## *????????????????????? | | ## ????????????????????? | | #######+####;;;;; ##???????????????????? | | #???# |%= ;#####+###+#+#???????? | | ????# !! ; #???????? | | ????# ; #???????? | | ?????# ; / #???????? | | ?????# ; #???????? | | ??????# @ ; #???????? | | ??????# ; #???????? | | ???????# **=g %/ #???????? | | ######???????# [ gx [#???????? | | ?????????????# [# # H #???????? | | ?????????????# """=; # g #???????? | | ## #???# # #? #???????? | | ## #???############## #?? #???????? | | ## #????????????????# #???#######+##???????? | | ###### ####?????????????# ????????????????????? | | ##### # ?????????????# ????????????????????? | | # ????????????? ????????????????????? | | + ????????????? ????????????????????? | | # ????????????? ????????????????????? | | ##### # ????????????? ????????????????????? | | #############????????????? #????????????????????? | | ????????????? #????????????????????? | | ????????????? ?????????????????????? | | ????????????? ?????????????????????? | | #### ????????????? ?????????????????????? | | ???# ????????????? ?????????????????????? | | ???# ????????????? ?????????????????????? | | ???# ????????????? ?????????????????????? | | ???# ????????????? ?????????????????????? | | ???# ????????????? ?????????????????????? | +----------------------------------------------------+ Best States ------------- Heat Dissipation 37 Energy Generation 25 Energy Capacity 250 Matter Stores 300 Matter Capacity 300 Sight Range 24 Terrain Scan Density 10 Armor Coverage 600 Resistance: TH 20 Evasion (%) 55 Recoil Reduction 4 Item Schematics ----------------- None Robot Schematics ------------------ None Fabricated ------------ Nothing Repaired ---------- Nothing Studied --------- Coil Gun | -6/Factory | Hacked Imp. Treads | -6/Factory | Hacked Lgt. Treads | -6/Factory | Hacked Alien Tech Used ----------------- None Achievements -------------- 5k Club Deductive Reasoning Heavy Suspicion Jackpot Oops Please Form A Line Serviceable Loadout Strength In Numbers Uncivil War Challenges ------------ None Game ------ Seed BattleBeamProcessor Manual? 0 Play Time 01:04:34 Cumulative 5.8 hours Start 2026.01.03 @ 13:02:40 End 2026.01.05 @ 16:08:42 Sessions 2 Manual Loads 0 Difficulty Rogue Special Mode None Game No. 8 Rogue 8 Adventurer 0 Explorer 0 Win Type - Total 0 Types 0/0/0/0/0/0/0/0/0/0 Lore% 13 Gallery% 7 Achievement% 8 Wizard Run 0 Options --------- Layout 1 ASCII 0 Keyboard 1 Movement Arrows Keybinds 0 Fullscreen 2 Font 48/Terminus Map View 50x35 Zoom Use 0% Tactical HUD 1 Map Filters NONE Filters NONE Steam 1 RUN: 5398fabf-0826-410a-b293-0eaa2e018566